bitfinex/quotes_ETHUSD_20250517
["timestamp","ask_amount","ask_price","bid_price","bid_amount"]
[1747443051805,3.99498623,2503.2,2502.6,3.99571851]
[1747443052012,3.99567567,2502.8,2502.5,0.7788]
[1747443052340,3.99450085,2503.5,2502.9,3.99528878]
[1747443052557,3.99457253,2503.4,2503.1,0.7788]
[1747443052914,9.71,2503.7,2503.1,0.7788]
[1747443053114,3.99498695,2503.2,2502.7,9.753]
[1747443053332,3.99497546,2503.2,2502.7,9.753]
[1747443053632,3.99522325,2503.0,2502.7,9.753]
[1747443054468,3.99560278,2502.8,2502.5,0.7788]
[1747443054615,3.99575761,2502.7,2502.6,9.753]
[1747443055048,3.99558879,2502.8,2502.6,9.753]
[1747443055359,3.99554883,2502.8,2502.7,9.754]
[1747443056159,11.99554883,2502.8,2502.7,9.754]
[1747443057078,12.64304357,2502.8,2502.7,9.754]
[1747443058863,3.99549106,2502.9,2502.7,9.754]
[1747443059104,3.99552501,2502.8,2502.7,9.754]
[1747443064034,3.99587966,2502.6,2502.4,17.231]
[1747443064244,3.99587966,2502.6,2502.4,26.938]
[1747443064442,3.99600399,2502.5,2502.4,26.938]
[1747443064850,0.8104,2502.6,2501.9,0.7735]
[1747443065050,0.8104,2502.6,2501.9,9.707]
[1747443065051,3.99695402,2502.0,2501.9,9.707]
[1747443065254,3.99695402,2502.0,2501.8,9.707]
[1747443065434,3.99670551,2502.1,2501.8,9.707]
[1747443065644,3.99720069,2501.8,2501.7,9.707]
[1747443066349,3.99720069,2501.8,2501.5,17.251]
[1747443066678,3.99728184,2501.7,2501.6,9.707]
[1747443067084,9.694,2502.2,2501.6,9.707]
[1747443067286,9.694,2502.2,2501.5,17.251]
[1747443067453,3.99650664,2502.2,2501.7,9.708]
[1747443067655,13.68840113,2502.3,2501.7,9.708]
[1747443067876,3.99648756,2502.2,2501.7,13.70515137]
[1747443068069,9.80097834,2502.6,2502.1,3.99656687]
[1747443068346,3.99569965,2502.7,2502.3,0.8215]
[1747443068762,3.99552501,2502.8,2502.3,0.8215]
[1747443068960,3.99600399,2502.5,2502.0,0.8215]
[1747443069189,3.996233,2502.4,2502.0,0.8215]
[1747443069397,3.99655628,2502.2,2502.0,0.8215]
[1747443069605,3.99638375,2502.3,2502.1,9.708]
[1747443069789,8.0,2502.7,2502.1,9.708]
[1747443069991,4.81357625,2502.4,2502.0,9.709]
[1747443070202,9.688,2502.3,2501.5,17.251]
[1747443070504,9.688,2502.3,2501.6,9.709]
[1747443070704,9.688,2502.3,2501.7,9.709]
[1747443071010,3.99711575,2501.9,2501.8,9.709]
[1747443072609,3.99730868,2501.7,2501.5,17.251]
[1747443072786,3.99719423,2501.8,2501.6,9.709]
[1747443072987,3.99719423,2501.8,2501.5,17.251]
[1747443072988,3.99728184,2501.7,2501.5,17.251]
[1747443073192,3.99726714,2501.8,2501.5,17.251]
[1747443073388,8.0,2502.0,2501.5,17.251]
[1747443073607,3.99728184,2501.7,2501.6,9.71]
[1747443074520,3.99718275,2501.8,2501.5,17.251]
[1747443074721,3.99718275,2501.8,2501.6,9.71]
[1747443074919,13.94682722,2502.6,2501.6,9.71]
[1747443075091,11.99658589,2502.2,2501.6,12.48825]
[1747443075297,3.99659076,2502.2,2501.6,16.48555855]
[1747443075497,11.99635036,2502.3,2501.6,12.48825]
[1747443075498,3.99666832,2502.1,2501.6,12.48825]
[1747443075711,3.99675706,2502.1,2501.6,12.48825]
[1747443075884,3.99684379,2502.0,2501.6,12.48825]
[1747443076086,3.99669483,2502.1,2501.6,16.4856587]
[1747443076616,3.99674483,2502.1,2501.6,12.48825]
[1747443076819,3.99678762,2502.1,2501.6,12.48825]
[1747443077324,3.99678762,2502.1,2501.6,16.48567725]
[1747443077710,9.80097834,2502.6,2501.8,0.8188]
[1747443078024,3.99623894,2502.4,2501.9,3.99685331]
[1747443078184,13.79687138,2502.6,2501.9,3.99685331]
[1747443078379,13.79687138,2502.6,2502.1,3.99652379]
[1747443078596,13.79687138,2502.6,2502.2,9.71]
[1747443079186,9.80097834,2502.6,2502.2,9.71]
[1747443079388,3.99545314,2502.9,2502.4,4.81488244]
[1747443079906,3.99555266,2502.8,2502.4,0.8188]
[1747443080105,3.99571953,2502.7,2502.4,0.8188]
[1747443080619,11.99557276,2502.8,2502.4,0.8188]
[1747443080818,0.30169365,2503.0,2502.4,4.81494002]
[1747443080987,3.995508,2502.9,2502.4,0.8188]
[1747443081896,3.99561178,2502.8,2502.4,0.8188]
[1747443082410,3.9954466,2502.9,2502.4,0.8188]
[1747443082592,3.9955387,2502.8,2502.4,0.8188]
[1747443083095,3.99542433,2502.9,2502.4,4.81494639]
[1747443083292,3.99557802,2502.8,2502.4,0.8188]
[1747443083496,3.99552624,2502.8,2502.4,0.8188]
[1747443083707,3.99538361,2502.9,2502.4,4.81490339]
[1747443083907,9.80097834,2503.2,2502.4,2.76801517]
[1747443084111,0.30003354,2503.4,2502.6,3.99584432]
[1747443084316,3.99461286,2503.4,2502.7,13.74458335]
[1747443084521,3.99461286,2503.4,2502.8,3.99540858]
[1747443084951,3.99475702,2503.3,2502.8,3.99540858]
[1747443085123,3.99458892,2503.4,2502.9,3.99532005]
[1747443085323,3.99473105,2503.3,2502.8,3.99546221]
[1747443086544,3.99489039,2503.2,2502.7,13.70461777]
[1747443086847,3.99496754,2503.2,2502.8,9.708]
[1747443087547,3.99480499,2503.3,2502.8,9.708]
[1747443087849,3.99472993,2503.3,2502.8,13.70343678]
[1747443088248,3.99432945,2503.6,2502.9,0.8195]
[1747443088549,3.99428478,2503.6,2503.1,3.99494708]
[1747443088947,11.99403553,2503.8,2502.9,0.8195]
[1747443088948,3.99446995,2503.5,2502.9,0.8195]
[1747443089152,3.99464181,2503.4,2502.9,4.81485942]
[1747443090216,3.99448848,2503.5,2503.0,13.65118827]
[1747443091660,3.99432318,2503.6,2503.1,3.99502086]
[1747443091943,3.99432318,2503.6,2503.0,9.656]
[1747443091944,3.99432832,2503.6,2503.0,13.6511742]
[1747443092146,3.99432832,2503.6,2503.1,3.9949705]
[1747443092339,3.99432832,2503.6,2503.2,9.655]
[1747443092539,3.99414486,2503.7,2503.2,13.64978827]
[1747443092715,3.99409507,2503.7,2503.2,13.6498083]
[1747443092920,8.29374353,2503.8,2503.2,13.6498083]
[1747443092921,11.99401043,2503.8,2503.3,3.99470304]
[1747443093222,3.99413707,2503.7,2503.2,13.64982249]
[1747443093752,3.99433945,2503.6,2503.1,3.99498748]
[1747443094051,3.99416499,2503.7,2503.3,9.655]
[1747443095051,3.99431869,2503.6,2503.3,9.655]
[1747443096534,8.0,2503.9,2503.4,4.7898505]
[1747443096853,9.80097834,2504.2,2503.5,26.905]
[1747443097159,3.99362449,2504.0,2503.5,30.89933134]
[1747443097455,11.99353041,2504.1,2503.6,3.99423725]
[1747443098660,11.99353041,2504.1,2503.7,9.654]
[1747443099666,3.99361292,2504.0,2503.7,9.654]
[1747443099866,8.0,2504.1,2503.7,9.654]
[1747443100165,11.99347505,2504.1,2503.7,9.654]
[1747443100863,3.99362301,2504.0,2503.7,9.654]
[1747443101747,11.99353175,2504.1,2503.7,9.654]
[1747443102141,3.99322746,2504.3,2503.8,4.81677257]
[1747443102367,8.8006,2504.6,2503.8,0.8229]
[1747443102938,3.99322152,2504.3,2503.8,4.81674581]
[1747443106342,8.0,2504.4,2503.8,0.8229]
[1747443106542,3.99328401,2504.3,2503.8,0.8229]
[1747443107378,3.99331105,2504.2,2503.8,0.8229]
[1747443108280,3.99331105,2504.2,2503.8,18.0689]
[1747443109577,3.99338813,2504.2,2503.8,18.0689]
[1747443109944,3.99313181,2504.3,2503.9,9.652]
[1747443110148,3.99361022,2504.0,2503.9,9.652]
[1747443111179,3.9935559,2504.1,2503.9,9.652]
[1747443111478,3.99361022,2504.0,2503.9,9.652]
[1747443111680,3.99357346,2504.1,2503.9,9.652]
[1747443112095,3.99337892,2504.2,2503.9,9.652]
[1747443112977,3.99337892,2504.2,2504.0,9.652]
[1747443113965,3.99318979,2504.3,2504.0,9.652]
[1747443114769,3.99336894,2504.2,2504.1,9.652]
[1747443115168,3.99315452,2504.3,2504.1,9.652]
[1747443116081,3.99329127,2504.2,2504.1,9.652]
[1747443116908,3.99321663,2504.3,2504.1,9.652]
[1747443118777,3.99306099,2504.4,2504.1,9.652]
[1747443119169,3.99289146,2504.5,2504.2,9.589]
[1747443119391,8.0,2504.6,2504.2,13.58226202]
[1747443119598,3.99293702,2504.5,2504.2,9.589]
[1747443119824,3.9929814,2504.4,2504.2,9.589]
[1747443120121,3.99281986,2504.5,2504.3,0.8031]
[1747443120325,3.99297236,2504.4,2504.3,0.8031]
[1747443120621,3.99297236,2504.4,2504.3,10.3921]
[1747443120922,3.99297236,2504.4,2504.3,9.589]
[1747443121095,3.99313209,2504.3,2504.1,0.8269]
[1747443121295,3.99305731,2504.4,2504.3,9.588]
[1747443121937,4.8345005,2504.5,2504.3,9.588]
[1747443122105,3.99339246,2504.2,2503.9,9.588]
[1747443122503,3.99317663,2504.3,2503.9,9.588]
[1747443122504,3.99320324,2504.3,2503.9,9.588]
[1747443122718,8.0,2504.6,2504.2,3.9931823]
[1747443122889,9.80097834,2504.7,2504.2,3.9931823]
[1747443123091,4.80476047,2505.0,2504.3,4.82001339]
[1747443123291,11.99226419,2504.9,2504.4,9.588]
[1747443123491,3.99237095,2504.8,2504.4,9.588]
[1747443123742,3.99237095,2504.8,2504.3,4.81997064]
[1747443123743,3.99409976,2503.7,2503.4,10.4149]
[1747443123891,3.9941626,2503.7,2503.4,10.4149]
[1747443124096,0.8127,2503.9,2503.5,9.588]
[1747443124296,3.99385188,2503.9,2503.5,9.588]
[1747443124721,0.84168757,2504.1,2503.5,9.588]
[1747443124722,3.99394225,2503.8,2503.5,9.588]
[1747443124907,3.99421512,2503.7,2503.5,9.588]
[1747443125644,3.9946934,2503.4,2503.2,9.588]
[1747443125838,3.99473989,2503.3,2503.1,0.7827]
[1747443126002,3.99465089,2503.4,2503.2,9.588]
[1747443126331,3.99465089,2503.4,2503.1,0.7827]
[1747443126502,3.99472696,2503.3,2503.2,9.588]
[1747443126827,0.8023,2503.6,2503.2,9.588]
[1747443126828,8.0,2503.7,2503.2,9.588]
[1747443127233,10.09924453,2504.1,2503.5,3.99431331]
[1747443127422,8.0,2504.0,2503.4,3.99456738]
[1747443127629,8.0,2504.0,2503.5,3.9943763]
[1747443127834,13.56399551,2504.4,2503.3,10.3517]
[1747443127835,9.571,2504.4,2503.3,10.3517]
[1747443128003,0.8023,2504.5,2504.0,0.7827]
[1747443128323,3.99230416,2504.9,2504.3,3.99304702]
[1747443128503,4.28966533,2504.9,2504.3,3.99304702]
[1747443128699,11.99239214,2504.8,2504.3,3.99304702]
[1747443128924,3.99251501,2504.7,2504.2,3.99320995]
[1747443130251,3.99251501,2504.7,2504.2,5.82905793]
[1747443130613,3.28211613,2505.0,2504.2,5.82905793]
[1747443130614,3.99246881,2504.8,2504.3,0.8118]
[1747443131140,3.99225703,2504.9,2504.4,3.99289323]
[1747443131310,0.29451633,2505.2,2504.4,0.66405412]
[1747443131509,8.0,2505.0,2504.5,3.99269253]
[1747443131751,3.99169726,2505.2,2504.6,13.58059421]
[1747443131912,3.99216443,2505.0,2504.4,3.99289841]
[1747443132111,3.9920314,2505.0,2504.5,13.5807925]
[1747443132444,8.0,2505.2,2504.5,9.588]
[1747443132629,3.99233913,2504.8,2504.3,4.80490874]
[1747443132836,3.99233913,2504.8,2504.4,9.588]
[1747443133445,3.99224703,2504.9,2504.4,9.588]
[1747443134130,3.99224703,2504.9,2504.4,13.58097157]
[1747443134336,11.99172085,2505.2,2504.5,3.99276222]
[1747443134551,3.99216614,2505.0,2504.4,13.58086849]
[1747443134849,3.99209868,2505.0,2504.4,13.58086849]
[1747443135026,11.99175542,2505.2,2504.5,3.99281293]
[1747443135226,11.99175542,2505.2,2504.7,3.99247322]
[1747443135441,3.99161425,2505.3,2504.8,0.8118]
[1747443135735,3.99170434,2505.2,2504.8,0.8118]
[1747443135933,3.99154081,2505.3,2504.8,0.8118]
[1747443136131,9.80097834,2505.4,2504.8,4.80407481]
[1747443136335,3.99154064,2505.3,2504.8,4.80407481]
[1747443136550,3.99154064,2505.3,2504.8,0.8118]
[1747443136749,3.99154064,2505.3,2504.8,4.804123]
[1747443137258,3.99172592,2505.2,2504.8,0.8118]
[1747443137937,13.7923617,2505.4,2504.8,4.8041259]
[1747443137938,9.80097834,2505.4,2504.8,4.8041259]
[1747443138136,3.99155314,2505.3,2504.8,4.8041259]
[1747443138462,0.8167,2505.9,2505.0,0.8118]
[1747443138643,3.99085567,2505.8,2505.3,3.991531]
[1747443138850,13.79146256,2506.0,2505.3,3.991531]
[1747443138851,13.79144501,2506.0,2505.3,3.991531]
[1747443139035,3.99084627,2505.8,2505.3,3.991531]
[1747443139359,3.99084627,2505.8,2505.4,9.586]
[1747443139655,3.99084627,2505.8,2505.5,9.586]
[1747443140229,3.99090074,2505.7,2505.6,9.586]
[1747443141657,3.99090074,2505.7,2505.0,4.80378108]
[1747443141819,3.99058222,2505.9,2505.1,9.586]
[1747443142023,1.75013194,2506.0,2505.1,9.586]
[1747443142236,3.99095711,2505.7,2505.1,13.5778237]
[1747443142431,8.0,2506.1,2505.2,3.99159819]
[1747443142663,3.9908669,2505.8,2505.3,3.99150606]
[1747443142961,3.99060239,2505.9,2505.3,0.8146]
[1747443143267,0.8167,2506.2,2505.3,0.8146]
[1747443143432,3.99110016,2505.6,2505.4,9.585]
[1747443144018,3.99098646,2505.7,2505.4,9.585]
[1747443144761,3.99082142,2505.8,2505.4,9.585]
[1747443144965,3.99031211,2506.1,2505.5,3.99117366]
[1747443145140,3.99047725,2506.0,2505.4,12.37645804]
[1747443145342,0.8167,2506.2,2505.8,3.99071193]
[1747443145645,3.99014246,2506.2,2505.9,9.584]
[1747443145847,3.99030995,2506.1,2505.9,9.584]
[1747443146175,3.99042298,2506.0,2505.9,9.584]
[1747443146384,3.99014796,2506.2,2505.9,9.584]
[1747443146543,3.99033785,2506.1,2505.9,9.584]
[1747443146946,0.29446023,2506.5,2505.9,9.584]
[1747443147165,10.2859,2506.8,2505.9,9.584]
[1747443147445,3.98968554,2506.5,2505.9,28.25461984]
[1747443147656,3.98941843,2506.7,2506.0,3.99028893]
[1747443147862,3.98945952,2506.7,2506.1,13.57318444]
[1747443148184,0.30636789,2507.0,2506.2,0.7815]
[1747443148185,3.9889887,2507.0,2506.2,0.7815]
[1747443148344,3.9889887,2507.0,2506.5,3.98961038]
[1747443148542,3.9889887,2507.0,2506.6,9.583]
[1747443148773,6.67924159,2507.3,2506.6,13.57237017]
[1747443148975,3.98875659,2507.1,2506.7,0.7815]
[1747443149791,3.98884208,2507.0,2506.8,9.518]
[1747443149956,3.98884208,2507.0,2506.7,0.7815]
[1747443150158,3.98884208,2507.0,2506.8,9.518]
[1747443151656,3.98854865,2507.2,2506.8,10.54795]
[1747443151975,8.0,2507.4,2506.7,0.7815]
[1747443152161,8.0,2507.4,2506.9,9.516]
[1747443152368,3.98876046,2507.1,2507.0,9.516]
[1747443154296,3.98867217,2507.1,2506.4,4.79945774]
[1747443154455,3.98942985,2506.7,2506.5,9.515]
[1747443154787,3.98914951,2506.8,2506.1,0.815]
[1747443154974,3.98930117,2506.8,2506.2,9.515]
[1747443155178,3.98954852,2506.6,2506.2,9.515]
[1747443155759,3.98964911,2506.5,2506.2,9.515]
[1747443156258,3.98954485,2506.6,2506.2,9.515]
[1747443156460,3.98970163,2506.5,2506.2,10.9470242]
[1747443156660,3.98960236,2506.6,2506.2,10.9470242]
[1747443157296,3.98960236,2506.6,2505.9,22.66120151]
[1747443157297,3.9903394,2506.1,2505.9,17.235]
[1747443157473,3.99012369,2506.2,2506.1,9.515]
[1747443157990,3.99012369,2506.2,2505.9,17.235]
[1747443158192,3.99040677,2506.1,2505.9,17.235]
[1747443158397,3.99040677,2506.1,2505.1,3.99181604]
[1747443158398,3.99090074,2505.7,2505.6,9.515]
[1747443158563,3.99074147,2505.8,2505.3,0.815]
[1747443158564,3.99117559,2505.6,2505.5,9.515]
[1747443158893,3.99107663,2505.6,2505.5,9.515]
[1747443159294,1.07394134,2506.0,2505.5,9.515]
[1747443159490,3.9909161,2505.7,2505.5,9.515]
[1747443162475,3.99058441,2505.9,2505.5,9.515]
[1747443162673,3.99058441,2505.9,2505.1,18.043]
[1747443162674,3.99058222,2505.9,2505.1,18.043]
[1747443162998,3.99169726,2505.2,2505.1,17.228]
[1747443163199,3.99169726,2505.2,2505.1,26.744]
[1747443163381,3.99169726,2505.2,2505.1,17.228]
[1747443163576,8.0,2505.2,2504.8,9.516]
[1747443163901,1.75013194,2505.4,2504.5,0.815]
[1747443163902,3.99217265,2505.0,2504.5,0.815]
[1747443164206,3.99213526,2505.0,2504.6,9.516]
[1747443164710,3.99213526,2505.0,2504.2,17.23]
[1747443164711,3.99241224,2504.8,2504.7,9.516]
[1747443164884,3.99241224,2504.8,2504.3,0.815]
[1747443165072,3.99241224,2504.8,2504.4,9.516]
[1747443165701,3.99275792,2504.6,2504.3,3.41815907]
[1747443165874,3.99275792,2504.6,2504.5,9.516]
[1747443166393,3.9921348,2505.0,2504.5,9.516]
[1747443166589,8.0,2505.0,2504.5,9.516]
[1747443166793,11.99202093,2505.0,2504.5,10.5491]
[1747443167099,11.99202093,2505.0,2504.5,14.5418659]
[1747443167305,11.99202093,2505.0,2504.5,14.54188558]
[1747443168005,8.0,2505.0,2504.5,14.54188558]
[1747443168305,8.0,2505.0,2504.6,3.99256131]
[1747443169224,9.80097834,2505.3,2504.9,3.99207317]
[1747443169508,3.9911498,2505.6,2505.1,3.99177648]
[1747443169709,8.0,2505.5,2505.2,0.822]
[1747443169870,3.9911498,2505.6,2505.2,0.822]
[1747443170912,3.99128507,2505.5,2505.2,0.822]
[1747443171612,3.99112523,2505.6,2505.2,0.822]
[1747443172836,3.9912734,2505.5,2505.2,0.822]
[1747443174578,3.9913226,2505.5,2505.2,0.822]
[1747443174796,3.9913226,2505.5,2505.3,9.519]
[1747443176573,3.9913226,2505.5,2505.4,9.519]
[1747443177489,3.99102525,2505.7,2505.4,9.519]
[1747443177694,3.99114004,2505.6,2505.4,9.519]
[1747443178620,3.99114004,2505.6,2505.2,0.822]
[1747443178825,3.99153793,2505.3,2505.2,0.822]
[1747443178988,1.75013194,2505.8,2505.2,10.277]
[1747443178989,3.99145967,2505.4,2505.2,10.277]
[1747443179320,3.99145439,2505.4,2505.3,9.455]
[1747443180169,3.99145439,2505.4,2505.2,0.822]
[1747443180373,3.99145439,2505.4,2505.3,9.455]
[1747443180576,3.99090074,2505.7,2504.9,0.7847]
[1747443180770,3.99137862,2505.4,2504.9,0.7847]
[1747443181086,3.99148445,2505.4,2505.0,9.455]
[1747443181286,3.99169726,2505.2,2505.1,9.455]
[1747443181923,3.99201596,2505.0,2504.9,9.455]
[1747443182103,3.99226326,2504.9,2504.8,9.455]
[1747443182290,3.99226326,2504.9,2504.4,4.77766044]
[1747443182498,3.99226326,2504.9,2504.8,9.455]
[1747443184010,3.99198853,2505.1,2504.8,9.455]
[1747443184212,3.99202476,2505.0,2504.8,9.455]
[1747443184515,3.99217533,2504.9,2504.8,9.455]
[1747443185035,8.7949,2505.1,2504.2,17.23]
[1747443185234,3.9922878,2504.9,2504.5,9.455]
[1747443185398,9.442,2505.0,2504.5,9.455]
[1747443185728,13.43408319,2505.0,2504.5,13.44780563]
[1747443185931,8.0,2505.1,2504.7,3.99242092]
[1747443186228,0.7949,2505.5,2504.9,3.99208696]
[1747443186513,9.80097834,2505.6,2505.0,14.63091652]
[1747443186715,13.79204873,2505.6,2505.1,13.44677556]
[1747443186882,13.79204873,2505.6,2505.2,3.99166042]
[1747443186883,9.80097834,2505.6,2505.2,3.99166042]
[1747443187083,9.80097834,2505.6,2505.3,3.99153084]
[1747443187642,3.99014663,2506.2,2505.5,3.99121931]
[1747443187918,3.99009005,2506.3,2505.7,3.99090074]
[1747443188117,3.99053304,2506.0,2505.6,0.47759193]
[1747443188304,0.7949,2505.9,2505.4,0.7847]
[1747443188634,3.99137862,2505.4,2505.3,17.235]
[1747443188814,3.99137862,2505.4,2505.3,26.69]
[1747443188998,3.99137862,2505.4,2505.3,17.235]
[1747443189786,4.80857862,2505.4,2505.3,17.235]
[1747443190626,3.99129286,2505.5,2505.3,17.235]
[1747443190826,3.99137862,2505.4,2505.3,17.235]
[1747443191028,3.99122289,2505.5,2505.3,17.235]
[1747443191204,3.99122289,2505.5,2505.3,17.23315229]
[1747443191401,8.8172,2505.6,2505.3,17.23315229]
[1747443191717,3.99102867,2505.7,2505.3,17.23315229]
[1747443191914,9.80097834,2506.4,2505.4,3.99134569]
[1747443192099,9.80097834,2506.4,2505.8,3.99060955]
[1747443192300,9.80097834,2506.8,2506.3,3.98990986]
[1747443192523,3.9889332,2507.0,2506.4,9.455]
[1747443192821,9.80097834,2507.2,2506.5,0.7555]
[1747443193026,8.0,2506.9,2506.5,0.7555]
[1747443193223,1.92795312,2507.0,2506.5,4.74498279]
[1747443193397,1.92795312,2507.0,2506.5,3.89899828]
[1747443193602,1.92795312,2507.0,2506.6,3.98938283]
[1747443194299,1.92795312,2507.0,2506.7,3.98929308]
[1747443194490,1.92795312,2507.0,2506.8,3.98907619]
[1747443194691,1.92795312,2507.0,2506.9,9.454]
[1747443194917,1.92795312,2507.0,2506.9,13.44299038]
[1747443195113,1.92795312,2507.0,2506.9,9.454]
[1747443195718,1.92795312,2507.0,2506.7,3.98921006]
[1747443196235,3.98877491,2507.1,2506.6,0.7555]
[1747443196391,3.98885375,2507.0,2506.6,0.7555]
[1747443196727,8.0,2507.2,2506.3,0.7555]
[1747443196902,3.98955786,2506.6,2506.4,9.452]
[1747443197105,3.98962696,2506.5,2506.4,9.452]
[1747443197324,3.9895188,2506.6,2506.4,9.452]
[1747443197628,3.98954777,2506.6,2506.4,9.452]
[1747443198012,3.98925847,2506.8,2506.4,9.452]
[1747443198013,8.0,2506.8,2506.4,9.452]
[1747443198216,8.0,2506.9,2506.4,9.452]
[1747443198415,11.98907637,2506.9,2506.4,13.4417765]
[1747443198592,3.98916237,2506.8,2506.4,9.452]
[1747443199192,8.0,2506.9,2506.4,9.452]
[1747443199399,3.98902568,2506.9,2506.4,9.452]
[1747443199611,3.98902568,2506.9,2506.4,13.44178296]
[1747443200125,3.98902568,2506.9,2506.4,9.452]
[1747443200431,3.98963206,2506.5,2506.3,0.7555]
[1747443200605,3.98952927,2506.6,2506.5,9.452]
[1747443201129,3.98937453,2506.7,2506.5,9.452]
[1747443201307,3.98920452,2506.8,2506.5,9.452]
[1747443202231,3.9889755,2507.0,2506.5,9.452]
[1747443202427,3.98899688,2506.9,2506.5,9.452]
[1747443202833,3.98899038,2506.9,2506.5,9.452]
[1747443203227,3.98890227,2507.0,2506.5,9.452]
[1747443203411,3.98867265,2507.1,2506.5,13.44153489]
[1747443203600,3.98884583,2507.0,2506.5,9.452]
[1747443203936,3.98884583,2507.0,2506.5,13.44155259]
[1747443204299,3.98851559,2507.2,2506.5,15.26024679]
[1747443204499,3.98892579,2507.0,2506.5,13.44155259]
[1747443205323,3.98892579,2507.0,2506.6,0.7555]
[1747443205829,3.98892655,2507.0,2506.6,0.7555]
[1747443206040,3.98891703,2507.0,2506.7,9.45]
[1747443206539,3.98885612,2507.0,2506.7,9.45]
[1747443207031,3.98885612,2507.0,2506.8,9.45]
[1747443207434,3.98869927,2507.1,2506.8,9.45]
[1747443207740,9.75013194,2507.3,2506.6,0.7555]
[1747443207917,3.98910337,2506.9,2506.8,9.45]
[1747443208242,3.98910337,2506.9,2506.3,3.98985429]
[1747443208243,0.8172,2506.7,2505.2,0.7555]
[1747443208439,0.55,2506.8,2505.3,9.45]
[1747443208440,1.75013194,2506.2,2505.3,9.45]
[1747443208614,3.99131989,2505.5,2505.3,9.45]
[1747443208936,3.99098308,2505.7,2505.2,4.74718019]
[1747443209111,3.99098308,2505.7,2505.4,9.45]
[1747443209303,3.99106469,2505.6,2505.4,9.45]
[1747443210301,3.99096361,2505.7,2505.4,9.45]
[1747443210611,3.99119276,2505.6,2505.4,9.45]
[1747443210820,11.99026375,2506.1,2505.4,9.45]
[1747443211000,3.99100859,2505.7,2505.4,9.45]
[1747443211209,3.99185661,2505.1,2505.0,9.387]
[1747443211406,11.99185661,2505.1,2505.0,9.387]
[1747443212034,3.99201596,2505.0,2504.9,17.225]
[1747443212242,4.28420432,2505.0,2504.9,17.225]
[1747443212637,0.29218836,2505.0,2504.1,0.7555]
[1747443212956,11.99195767,2505.1,2504.5,13.37971484]
[1747443213151,3.99210208,2505.0,2504.5,9.387]
[1747443213337,3.99210208,2505.0,2504.5,13.37981269]
[1747443213542,3.99210208,2505.0,2504.5,9.387]
[1747443215281,8.0,2505.1,2504.5,9.387]
[1747443215569,3.992071,2505.0,2504.5,9.387]
[1747443216248,3.992071,2505.0,2504.5,13.37980432]
[1747443216623,8.0,2505.1,2504.6,3.99264292]
[1747443217022,8.0,2505.1,2504.6,3.99265351]
[1747443217258,3.99180091,2505.2,2504.6,3.99265351]
[1747443217420,3.99203033,2505.0,2504.7,0.8017]
[1747443217619,3.99228637,2504.9,2504.5,9.387]
[1747443217931,3.99207876,2505.0,2504.5,9.387]
[1747443218321,8.0,2505.4,2504.5,11.42991285]
[1747443218668,8.0,2505.4,2504.9,3.99211187]
[1747443218842,8.0,2505.4,2505.0,30.61501236]
[1747443219152,3.9913822,2505.4,2505.0,26.623]
[1747443219349,9.80097834,2505.5,2505.0,17.233]
[1747443219536,3.99137862,2505.4,2505.1,9.39]
[1747443219940,3.99140436,2505.4,2505.1,9.39]
[1747443221376,19.16697834,2505.5,2504.1,2.19761002]
[1747443221535,8.0,2505.4,2504.5,3.99266724]
[1747443221867,8.0,2505.4,2504.6,9.39]
[1747443221868,3.99218096,2504.9,2504.6,9.39]
[1747443222545,3.99218096,2504.9,2504.7,9.39]
[1747443222869,3.99240311,2504.8,2504.2,0.7519]
[1747443223169,3.99258867,2504.7,2504.3,9.39]
[1747443224879,0.7823,2505.1,2504.3,13.38313052]
[1747443225040,12.77372812,2505.4,2504.7,3.99239347]
[1747443225366,3.99141773,2505.4,2504.9,4.74401857]
[1747443225546,3.99129292,2505.5,2505.0,9.39]
[1747443225744,3.99138662,2505.4,2505.0,26.624]
[1747443226768,3.99155466,2505.3,2505.0,26.624]
[1747443227669,3.99169726,2505.2,2505.1,9.391]
[1747443228168,3.99162313,2505.3,2505.1,9.391]
[1747443230968,3.99141372,2505.4,2505.1,9.391]
[1747443231853,3.99137011,2505.5,2505.1,9.391]
[1747443232170,3.99138209,2505.4,2505.1,9.391]
[1747443233037,0.7823,2505.7,2505.1,9.391]
[1747443233232,3.99099539,2505.7,2505.2,3.99157837]
[1747443233438,3.99093405,2505.7,2505.2,7.0533551]
[1747443234074,3.99062142,2505.9,2505.2,7.05325731]
[1747443234441,3.9909748,2505.7,2505.2,3.06165784]
[1747443235170,3.99107151,2505.6,2505.1,13.38276958]
[1747443235374,3.99098725,2505.7,2505.2,3.9916927]
[1747443235946,3.99079947,2505.8,2505.3,3.99150489]
[1747443236176,3.99090131,2505.7,2505.2,3.99163186]
[1747443238358,3.99090131,2505.7,2505.3,9.39]
[1747443239049,3.99074887,2505.8,2505.3,13.38151674]
[1747443239256,3.99045387,2506.0,2505.4,0.7961]
[1747443239484,0.8325,2506.2,2505.4,0.7961]
[1747443239681,0.8325,2506.2,2505.3,11.12731486]
[1747443239682,0.8325,2506.5,2505.7,0.7961]
[1747443239887,0.21959372,2506.6,2505.8,9.332]
[1747443240172,0.21959372,2506.6,2506.0,0.7961]
[1747443240357,0.21959372,2506.6,2505.4,0.55]
[1747443240358,3.99010454,2506.2,2506.1,26.566]
[1747443240756,4.82260454,2506.2,2506.1,17.234]
[1747443240958,12.82260454,2506.2,2506.1,17.234]
[1747443242746,3.99058222,2505.9,2505.8,9.331]
[1747443242945,3.9907462,2505.8,2505.3,22.01697029]
[1747443243159,3.99042827,2506.0,2505.3,22.01697029]
[1747443243160,3.99058222,2505.9,2505.4,9.331]
[1747443243375,3.99127157,2505.5,2505.3,17.233]
[1747443243604,3.99137862,2505.4,2505.3,17.233]
[1747443243766,11.99137862,2505.4,2505.3,17.233]
[1747443248161,8.0,2505.4,2505.3,17.233]
[1747443248585,0.29741073,2506.1,2505.4,0.7682]